Cogmind - Beta 12 @@@ ROGUE MODE // 2024.01.13 @ 03:06:42 Player: puppuppit Result: Destroyed by S-27 Virus with Autogun Performance ------------- Evolutions (5) 2500 Regions Visited (17) 3400 Robots Destroyed (215) 1075 Value Destroyed (7537) 7537 Prototype IDs (50) 1000 Alien Tech Used (0) 0 Bonus (5218) 5218 TOTAL SCORE: 20730 Bonus ------- High Alert Combat Kills 607 Follower Combat Kills 1170 Entered DSFs 500 Aligned with FarCom 300 Met Imprinter 300 Met Warlord at Base 500 MAIN.C Attacked Warlord 500 Warlord Defense Kills 2410 Friendly Fire -1069 Cogmind --------- Core Integrity 0/1000 Matter 200/300 Energy 348/350 System Corruption 0% Temperature Cool (4) Movement Flying (32) Location -4/Proximity Caves Parts ------- > --- POWER (2) -------- Micro Fission Core > --- PROPULSION (4) --- VTOL Module VTOL Module > --- UTILITY (9) ------ Compact Battery Experimental Optical Array Advanced Targeting Computer Experimental Targeting Computer Hacking Suite Makeshift Hacking Suite Advanced Hacking Suite Makeshift System Shield Makeshift System Shield > --- WEAPON (2) ------- (None) > --- INVENTORY (5) ---- Encrypted Comm Array Vortex Rail (6) GAL Module Peak State ------------ > --- POWER ------------ Light Fission Core Micro Fission Core > --- PROPULSION ------- Gravmag Array Antigrav System Antigrav System > --- UTILITY ---------- Small Storage Unit Compact Battery Enhanced Optical Array Remote Force Field Hacking Suite Makeshift Hacking Suite Advanced Hacking Suite System Shield Makeshift System Shield > --- WEAPON ----------- Tri-rail Accelerator > --- INVENTORY -------- Improved Gravmag System Improved Target Analyzer Transmission Jammer Improved System Restoration Module Long-range Tractor Beam Long-range Proton Cannon Heavy Shock Bomb Launcher GAL Module [Rating: 86] Favorites ----------- Power Micro Nuclear Core Engine Light Ion Engine Power Core Micro Nuclear Core Propulsion Improved Airjet Leg Aluminum Leg Wheel Wheel Hover Unit Improved Airjet Flight Unit Cesium-ion Thruster Utility Small Storage Unit Device Long-range Tractor Beam Storage Small Storage Unit Processor Launcher Guidance Computer Hackware Makeshift System Shield Protection Improved Utility Shielding Weapon Advanced Beam Rifle Energy Gun Advanced Beam Rifle Energy Cannon Phase Cannon Ballistic Gun Heavy Assault Rifle Ballistic Cannon Tri-rail Accelerator Launcher Mini Grenade Launcher Special Melee Weapon Datajack Build | -11 -10 -10 -10 -9 -8 -7 -7 -7 -7 -6 -6 -6 -5 -5 -5 -5 -4 ------- Run | Jun Mat Min Exi Min Mat Fac Low Low Zio Pro Fac DSF Fac Upp Upp War Pro Slots Evolved 10 | . . . . . 4 2 . . . . 2 . 2 . . . . Power 1 | . . . . . . . . . . . . . 1 . . . . Propulsion 2 | . . . . . 1 1 . . . . . . . . . . . Utility 7 | . . . . . 3 1 . . . . 2 . 1 . . . . Weapon . | . . . . . . . . . . . . . . . . . . Parts Attached 233 | 6 24 5 1 2 37 23 6 1 3 2 7 8 43 16 3 28 18 Power 25 | 1 2 1 . 1 6 1 1 . . . . 2 5 2 . 3 . Engine 11 | 1 2 1 . 1 2 . . . . . . 1 2 . . 1 . Core 14 | . . . . . 4 1 1 . . . . 1 3 2 . 2 . Reactor . | . . . . . . . . . . . . . . . . . . Propulsion 53 | 2 5 1 1 . 10 6 1 1 . . 2 1 11 1 . 9 2 Treads . | . . . . . . . . . . . . . . . . . . Leg 5 | . . . . . 5 . . . . . . . . . . . . Wheel 2 | 2 . . . . . . . . . . . . . . . . . Hover 38 | . 5 1 1 . 5 6 1 1 . . 2 1 11 1 . 3 . Flight 8 | . . . . . . . . . . . . . . . . 6 2 Utility 79 | 1 3 1 . . 11 8 4 . 3 1 5 3 19 8 3 7 2 Device 32 | . 1 . . . 4 4 2 . 2 . 4 . 10 4 . 1 . Storage 19 | 1 . . . . 4 3 1 . . 1 1 . 2 2 . 2 2 Processor 13 | . 1 1 . . 3 . . . . . . . 1 1 2 4 . Hackware 12 | . . . . . . . . . 1 . . 3 6 1 1 . . Protection 3 | . 1 . . . . 1 1 . . . . . . . . . . Artifact . | . . . . . . . . . . . . . . . . . . Weapon 76 | 2 14 2 . 1 10 8 . . . 1 . 2 8 5 . 9 14 Energy Gun 26 | 1 1 . . 1 6 2 . . . . . . . . . 6 9 Energy Cannon 15 | . 8 . . . 1 1 . . . 1 . 1 2 1 . . . Ballistic Gun 4 | 1 2 1 . . . . . . . . . . . . . . . Ballistic Cannon 10 | . 2 . . . 1 . . . . . . 1 4 2 . . . Launcher 20 | . 1 1 . . 1 5 . . . . . . 2 2 . 3 5 Special Weapon . | . . . . . . . . . . . . . . . . . . Impact Weapon . | . . . . . . . . . . . . . . . . . . Slashing Weapon . | . . . . . . . . . . . . . . . . . . Piercing Weapon . | . . . . . . . . . . . . . . . . . . Special Melee Weapon 1 | . . . . . 1 . . . . . . . . . . . . Unidentified Prototypes 12 | . . . . . 2 2 . . 1 . . . 2 . . 5 . Corrupted Parts 1 | . . . 1 . . . . . . . . . . . . . . System Corruption 4 | . . . 4 . . . . . . . . . . . . . . Parts Lost 48 | . 3 . . . 10 5 . 1 . . . 3 8 10 2 . 6 Power 12 | . 1 . . . 3 1 . . . . . 2 4 . . . 1 Propulsion 18 | . 2 . . . 4 1 . 1 . . . . 1 5 . . 4 Utility 10 | . . . . . . 2 . . . . . 1 2 2 2 . 1 Weapon 8 | . . . . . 3 1 . . . . . . 1 3 . . . Highest Loss Streak 5 | . 1 . . . 4 3 . 1 . . . 1 4 5 2 . 4 To Critical Strikes . | . . . . . . . . . . . . . . . . . . Average Slot Usage (%) 86 | . 71 91 100 100 85 96 100 99 99 100 92 90 86 66 49 80 78 Engine 3 | . 9 6 14 14 1 . . . . . . 2 4 . . 3 . Core 3 | . . . . . 4 6 7 7 7 7 6 2 4 1 . 4 5 Leg 1 | . . . . . 6 1 . . . . . . . . . . . Hover 19 | . 21 28 28 28 15 27 30 29 30 30 20 20 17 8 . 6 . Device 7 | . 1 . . . 10 14 21 15 21 21 18 16 2 4 . . . Storage 11 | . 14 14 14 14 18 14 7 7 7 8 20 15 9 5 1 3 1 Processor 10 | . . 14 14 14 11 15 15 15 9 7 6 6 5 8 21 18 17 Hackware 12 | . . . . . . . . . 4 7 6 13 32 29 26 29 29 Energy Gun 4 | . 5 . . 9 11 6 7 7 7 6 . . . . . 5 4 Energy Cannon 1 | . 11 3 . . . . . . . . 6 6 1 . . . . Ballistic Gun 1 | . 2 10 14 4 . . . . . . . . . . . . . Ballistic Cannon 1 | . 2 . . . 1 . . . . . . 5 4 2 . . . Launcher 3 | . . 14 14 14 1 6 7 7 7 7 6 . . 1 . . . Naked Turns . | . . . . . . . . . . . . . . . . . . Heaviest Build 44 | 13 16 15 15 17 19 24 20 20 20 23 26 35 44 32 1 28 17 Greatest Support 42 | 26 26 18 18 18 30 34 34 35 35 35 37 38 42 29 3 20 20 Greatest Overweight (x) 4 | 3 4 . . . 3 1 . . . . . . 1 2 . 3 1 Average Overweight (x) . | . . . . . . . . . . . . . . . . . . Largest Inventory Capacity 8 | 8 8 8 8 8 8 8 8 8 8 8 8 8 8 8 5 5 5 Average Capacity 7 | 7 8 8 8 8 8 8 8 8 8 8 8 8 7 7 5 5 5 Most Carried 8 | 3 8 8 8 8 8 8 8 8 8 8 8 8 8 8 5 5 5 Average Carried 7 | 1 5 7 7 7 7 7 7 7 7 7 7 7 7 6 4 4 4 Final Capacity 8 | 8 8 8 8 8 8 8 8 8 8 8 8 8 8 5 5 5 5 Final Carried 8 | 3 8 8 8 8 7 7 7 8 8 8 8 8 7 4 5 5 3 Class Distribution -------------------- 30% | Mutant 27% | Scavenger-Mutant 27% | Hacker-Mutant 7% | Wizard-Mutant 3% | Derelict-Mutant 3% | Hacker-Sprinter Dominant Class ---------------- Mutant | -10/Materials Mutant | -10/Mines Scavenger-Mutant | -10/Exiles Scavenger-Mutant | -9/Mines Scavenger-Mutant | -8/Materials Scavenger-Mutant | -7/Factory Mutant | -7/Lower Caves Mutant | -7/Lower Caves Mutant | -7/Zion Mutant | -6/Proximity Caves Derelict-Mutant | -6/Factory Hacker-Mutant | -6/DSF Hacker-Mutant | -5/Factory Hacker-Mutant | -5/Upper Caves Hacker-Mutant | -5/Upper Caves Hacker-Mutant | -5/Warlord Hacker-Sprinter | -4/Proximity Caves Resources | -11 -10 -10 -10 -9 -8 -7 -7 -7 -7 -6 -6 -6 -5 -5 -5 -5 -4 ----------- Run | Jun Mat Min Exi Min Mat Fac Low Low Zio Pro Fac DSF Fac Upp Upp War Pro Matter Collected 4902 | 147 274 459 . 271 750 490 41 216 56 102 . 205 1016 477 58 270 70 Remotely 1399 | . . . . . 655 490 . . 56 102 . 96 . . . . . Salvage Created 6163 | 130 472 101 . 523 916 1023 5 513 . 178 . 113 1095 255 . 502 337 Parts 336 | 10 32 8 . 36 60 51 2 17 . 11 . 2 67 10 . 18 12 Haulers Intercepted 7 | . 1 . . . 3 3 . . . . . . . . . . . Recyclers Shooed 7 | 1 1 . . 2 1 1 . . . . . . 1 . . . . Parts Field Recycled . | . . . . . . . . . . . . . . . . . . Retrieved Matter . | . . . . . . . . . . . . . . . . . . Parts Self-Destructed 40 | . . . . . . . 1 5 . 9 . . . 9 6 . 10 Prevented 8 | . . . . . . . . . . . . . . 6 1 . 1 Kills | -11 -10 -10 -10 -9 -8 -7 -7 -7 -7 -6 -6 -6 -5 -5 -5 -5 -4 ------- Run | Jun Mat Min Exi Min Mat Fac Low Low Zio Pro Fac DSF Fac Upp Upp War Pro Combat Hostiles Destroyed 142 | . 9 3 . 12 18 10 . 11 . 8 . 3 19 7 . 19 23 Guns 22 | . 1 . . 3 8 3 . 1 . 2 . . . . . . 4 Cannons 34 | . 8 . . . 2 . . . . . . 3 16 5 . . . AOE 84 | . . 3 . 9 8 6 . 10 . 6 . . 2 2 . 19 19 Classes Destroyed 21 | 2 6 . . 3 1 2 1 . . . . 1 . . . 3 2 Worker 16 | . . . . 3 3 6 . . . . . . 4 . . . . Builder 7 | . 1 . . 1 1 2 . . . . . . 2 . . . . Tunneler 5 | 3 . . . . . 1 . . . . . . 1 . . . . Hauler 7 | . 1 . . . 3 3 . . . . . . . . . . . Recycler 10 | 1 . 1 . 2 1 4 . . . . . . 1 . . . . Minesweeper 2 | . . . . . . . 1 . . . . . . 1 . . . Operator 8 | . 1 . . . 2 3 . . . . . . 2 . . . . Drone 1 | . . . . . . . . . . . . . . . . . 1 Watcher 14 | . 3 . . . 5 2 . . . . . . 4 . . . . Swarmer 40 | . 3 3 . 4 4 . . 4 . 4 . . 1 1 . 3 13 Grunt 46 | . 6 . . 5 8 6 . 3 . 3 . 1 3 1 . 6 4 Brawler 5 | . . . . . 2 . . . . . . 1 . . . 1 1 Duelist 4 | . . . . 1 1 . . . . . . . . . . . 2 Sentry 11 | . . . . 2 3 1 . . . 1 . . 3 . . . 1 Demolisher 2 | . . . . . . . . . . . . . . . . 2 . Specialist 2 | . . . . . . . . . . . . 1 . . . 1 . Hunter 10 | . . . . . . 2 . . . . . . 3 3 . 2 . Programmer 15 | . . . . . . 1 . . . . . . 10 2 . 2 . Behemoth 1 | . . . . . . . . . . . . . . . . . 1 Striker 1 | . . . . . . . . . . . . . . . . 1 . Executioner 1 | . . . . . . . . . . . . . . . . 1 . Wasp 3 | . . . . . . . . 3 . . . . . . . . . Thug 4 | . . . . 1 . . . 1 . . . . . . . 2 . Best Kill Streak 13 | 4 4 3 . 4 6 7 1 4 . 5 . 2 6 2 . 13 9 Combat Bots Only 13 | . 4 3 . 4 5 2 . 4 . 5 . 2 3 2 . 13 9 Max Kills in Single Turn 9 | 1 1 3 . 2 4 3 1 3 . 3 . 1 5 1 . 9 7 Gunslinging . | . . . . . . . . . . . . . . . . . . Exploded 9 | . . 3 . 2 4 2 . 3 . 2 . . 1 1 . 9 7 Melee . | . . . . . . . . . . . . . . . . . . Uniques/NPCs Destroyed . | . . . . . . . . . . . . . . . . . . Combat | -11 -10 -10 -10 -9 -8 -7 -7 -7 -7 -6 -6 -6 -5 -5 -5 -5 -4 -------- Run | Jun Mat Min Exi Min Mat Fac Low Low Zio Pro Fac DSF Fac Upp Upp War Pro Damage Taken 6143 | . 392 . . 139 873 629 . 170 . 208 . 468 1506 1026 248 57 427 Core 1592 | . 120 . . 39 106 81 . 58 . 11 . 165 256 393 205 . 158 Absorbed by Shields 1288 | . . . . . . . . . . . . . 373 567 . 57 291 Redirected to Shielding 20 | . . . . . . . . 20 . . . . . . . . . Regen/Repaired (Parts) 283 | . . . . . . 31 . . . . 71 . 166 . . 15 . Core Remaining (%) 74 | 100 . . . 36 80 . . . . 78 . 80 . . . . . Volleys Fired 483 | 7 53 4 . 40 109 49 12 17 1 11 . 13 91 42 . 6 28 Largest 2 | 2 2 2 . 2 2 2 2 2 1 2 . 2 2 2 . 1 2 Hottest 138 | 60 112 86 . 108 129 97 91 91 61 91 . 138 138 134 . 45 90 Shots Fired 664 | 14 60 5 . 55 168 74 13 27 1 22 . 17 110 53 . 6 39 Gun 285 | 14 22 2 . 38 114 35 2 11 1 11 . . . . . 1 34 Cannon 243 | . 38 1 . . 34 . . . . . . 15 107 48 . . . Launcher 136 | . . 2 . 17 20 39 11 16 . 11 . 2 3 5 . 5 5 Special . | . . . . . . . . . . . . . . . . . . Kinetic 197 | 7 . 2 . 23 26 . . . . . . 11 87 41 . . . Thermal 236 | 7 22 . . 15 122 35 2 11 1 11 . 4 6 . . . . Explosive 97 | . . 2 . 17 20 18 11 16 . 11 . 2 . . . . . Electromagnetic 89 | . 38 1 . . . 21 . . . . . . 17 12 . . . Entropic 45 | . . . . . . . . . . . . . . . . 6 39 Robot Hit Streak 15 | 10 7 3 . 6 11 8 7 5 . 5 . 8 10 11 . 4 15 Robot Miss Streak 7 | 1 4 1 . 7 6 2 1 4 . 2 . 3 4 3 . . 1 Penetration Max 1 | . . . . . . . . . . . . . . . . . 1 Secondary Targets . | . . . . . . . . . . . . . . . . . . Shots Hit Robots 393 | 10 41 3 . 21 101 39 3 12 . 14 . 11 70 34 . 4 30 Core Hits 355 | 5 18 4 . 30 58 58 3 30 . 19 . 6 56 17 . 27 24 Critical Kills 1 | . . . . . . . . . . . . . 1 . . . . Critical Parts Destroyed 2 | . . . . . . . . . . . . . . . . . 2 Critical Strikes 31 | . . . . . 11 3 . 2 . 1 . 1 5 6 . . 2 Burn 16 | . . . . . 10 3 . 2 . 1 . . . . . . . Meltdown 1 | . . . . . . . . . . . . . 1 . . . . Blast 12 | . . . . . 1 . . . . . . 1 4 6 . . . Detonate 2 | . . . . . . . . . . . . . . . . . 2 Melee Attacks . | . . . . . . . . . . . . . . . . . . Impact . | . . . . . . . . . . . . . . . . . . Slashing . | . . . . . . . . . . . . . . . . . . Piercing . | . . . . . . . . . . . . . . . . . . Sneak Attacks . | . . . . . . . . . . . . . . . . . . Combat Hostiles . | . . . . . . . . . . . . . . . . . . Follow-up Attacks . | . . . . . . . . . . . . . . . . . . Damage Inflicted 26873 | 113 870 219 . 1026 2770 2669 73 1398 . 897 . 342 4493 1185 . 5754 5064 Guns 4277 | 113 141 31 . 329 1601 492 20 104 . 160 . . . . . 50 1236 Cannons 5533 | . 729 . . . 322 . . . . . . 313 3282 887 . . . Explosions 17061 | . . 188 . 697 847 2177 53 1294 . 737 . 29 1209 298 . 5704 3828 Melee . | . . . . . . . . . . . . . . . . . . Ramming 2 | . . . . . . . . . . . . . 2 . . . . Kinetic 4598 | 48 . 31 . 223 189 . . . . . . 255 3000 852 . . . Thermal 4356 | 65 141 40 . 106 1734 515 20 104 . 160 . 58 1171 . . . 242 Explosive 5190 | . . 148 . 697 847 1385 53 1294 . 737 . 29 . . . . . Electromagnetic 2151 | . 729 . . . . 769 . . . . . . 320 333 . . . Impact . | . . . . . . . . . . . . . . . . . . Slashing . | . . . . . . . . . . . . . . . . . . Piercing . | . . . . . . . . . . . . . . . . . . Entropic 10576 | . . . . . . . . . . . . . . . . 5754 4822 Highest Corruption 8 | . . . 4 4 1 5 5 . . . . . 5 7 8 8 . Average Corruption 2 | . . . 4 4 1 2 3 . . . . . 2 4 7 8 . Corruption Purged 13 | . . . . . . . 5 . . . . . 7 1 . . . Corruption Blocked . | . . . . . . . . . . . . . . . . . . Effects 59 | . . . 4 10 8 5 7 . . . . . 6 13 5 1 . Message Errors 12 | . . . . 3 1 2 2 . . . . . 1 1 1 1 . Matter Fused 18 | . . . 2 4 2 . 3 . . . . . 1 5 1 . . Heat Flow Errors 3 | . . . . 1 2 . . . . . . . . . . . . Energy Discharges 7 | . . . 2 . 1 2 1 . . . . . . . 1 . . Parts Rejected 1 | . . . . . . . . . . . . . 1 . . . . Parts Fused 1 | . . . . . . . . . . . . . . 1 . . . Data Loss (minor) 8 | . . . . 1 1 . . . . . . . 1 5 . . . Data Loss (major) 3 | . . . . . 1 . . . . . . . . 1 1 . . Misfires 2 | . . . . . . 1 . . . . . . 1 . . . . Alerts 2 | . . . . . . . . . . . . . 1 . 1 . . Weapon Failures 2 | . . . . 1 . . 1 . . . . . . . . . . Overload Shots . | . . . . . . . . . . . . . . . . . . Overflow Damage 1118 | . 17 . . 32 32 53 . 113 . 3 . . 268 37 . 316 247 Projectiles 188 | . 17 . . . 22 . . . . . . . 115 34 . . . Explosions 930 | . . . . 32 10 53 . 113 . 3 . . 153 3 . 316 247 Melee . | . . . . . . . . . . . . . . . . . . Knockbacks 27 | . . . . . . . . . . . . 2 18 7 . . . Impact . | . . . . . . . . . . . . . . . . . . Kinetic 25 | . . . . . . . . . . . . 2 16 7 . . . Secondary 2 | . . . . . . . . . . . . . 2 . . . . Self-Inflicted Damage 116 | . . . . 48 . 29 . . . . . . 2 37 . . . Shots 6 | . . . . 1 . 1 . . . . . . 1 3 . . . Rammed 1 | . . . . . . . . . . . . . 1 . . . . Targets Rammed 1 | . . . . . . . . . . . . . 1 . . . . Kicked . | . . . . . . . . . . . . . . . . . . Crushed . | . . . . . . . . . . . . . . . . . . Highest Temperature 375 | . 98 17 . 171 341 323 26 156 12 189 . . 375 281 . . 71 Average Temperature 74 | . 28 12 . 67 81 87 13 56 9 72 . . 79 121 . . 55 Received Heat Transfer 966 | . 123 . . 27 333 114 . 54 . 93 . 18 61 98 45 . . Effects 4 | . . . . . . 2 . . . . . . 2 . . . . Interference 4 | . . . . . . 2 . . . . . . 2 . . . . Siege Activations . | . . . . . . . . . . . . . . . . . . Robots Corrupted 1 | . . . . . . 1 . . . . . . . . . . . Combat Hostiles 1 | . . . . . . 1 . . . . . . . . . . . Parts Fried 11 | . 2 . . . . 8 . . . . . . . 1 . . . Impact Corruptions . | . . . . . . . . . . . . . . . . . . Robots Melted 1 | . . . . . . . . . . . . . 1 . . . . Combat Hostiles 1 | . . . . . . . . . . . . . 1 . . . . Parts Melted 15 | . 2 . . . 9 . . 2 . . . . 2 . . . . Heat Transferred 7392 | 150 325 50 . 185 3734 1086 37 333 . 370 . 74 898 . . . 150 Parts Sabotaged . | . . . . . . . . . . . . . . . . . . Parts Stolen . | . . . . . . . . . . . . . . . . . . Parts Stripped . | . . . . . . . . . . . . . . . . . . Power Chain Reactions 2 | . . . . . . 2 . . . . . . . . . . . Missiles Intercepted . | . . . . . . . . . . . . . . . . . . Alert | -11 -10 -10 -10 -9 -8 -7 -7 -7 -7 -6 -6 -6 -5 -5 -5 -5 -4 ------- Run | Jun Mat Min Exi Min Mat Fac Low Low Zio Pro Fac DSF Fac Upp Upp War Pro Peak Influence 1142 | 20 237 207 . 289 1081 1142 . . . . 113 304 781 . . . . Initial 491 | . 13 92 . . 94 491 . . . . 113 89 159 . . . . Average 409 | 4 127 181 . 129 670 728 . . . . 113 218 401 . . . . Maximum Alert Level 4 | . 1 1 . 1 3 4 . . . . . 1 3 . . . . Low Security (%) 33 | 100 71 95 . 64 3 . . . . . 100 48 19 . . . . Level 1 22 | . 28 4 . 35 13 . . . . . . 51 39 . . . . Level 2 22 | . . . . . 35 52 . . . . . . 27 . . . . Level 3 19 | . . . . . 48 39 . . . . . . 13 . . . . Level 4 1 | . . . . . . 8 . . . . . . . . . . . Level 5 . | . . . . . . . . . . . . . . . . . . High Security . | . . . . . . . . . . . . . . . . . . Max Security . | . . . . . . . . . . . . . . . . . . Sterilizations 1 | . . . . . . . . . . . . 1 . . . . . Squads Dispatched 42 | . 2 . . 1 7 9 . . . . 1 2 20 . . . . Investigation 9 | . 1 . . . 2 3 . . . . . . 3 . . . . Extermination 5 | . . . . . . 1 . . . . 1 . 3 . . . . Reinforcement 18 | . 1 . . 1 2 3 . . . . . 2 9 . . . . Assault 5 | . . . . . 3 1 . . . . . . 1 . . . . Garrison 5 | . . . . . . 1 . . . . . . 4 . . . . Intercept . | . . . . . . . . . . . . . . . . . . Searches Triggered . | . . . . . . . . . . . . . . . . . . Construction Impeded 7 | . . . . 1 1 2 . . . . . . 3 . . . . Haulers Reinforced 1 | . . . . . . 1 . . . . . . . . . . . Active Scanning Responses . | . . . . . . . . . . . . . . . . . . Cargo Convoy Interrupts 1 | . . . . . . . . . . . . . 1 . . . . Stealth | -11 -10 -10 -10 -9 -8 -7 -7 -7 -7 -6 -6 -6 -5 -5 -5 -5 -4 --------- Run | Jun Mat Min Exi Min Mat Fac Low Low Zio Pro Fac DSF Fac Upp Upp War Pro Distress Signals 5 | . 1 . . . 4 . . . . . . . . . . . . Communications Jammed 2 | . . . . . . . . . . . . . 2 . . . . Distress Signals 1 | . . . . . . . . . . . . . 1 . . . . Times Spotted 271 | . 19 3 . 11 63 15 . 11 . 9 1 10 38 21 13 26 31 Peak Tracking Total 15 | . 5 3 . 4 9 3 . 4 . 4 2 5 4 9 7 15 9 Tactical Retreats 28 | . 3 . . . 8 1 . . . . . 1 2 3 5 2 3 Traps | -11 -10 -10 -10 -9 -8 -7 -7 -7 -7 -6 -6 -6 -5 -5 -5 -5 -4 ------- Run | Jun Mat Min Exi Min Mat Fac Low Low Zio Pro Fac DSF Fac Upp Upp War Pro Traps Triggered 9 | . 1 . . . 1 3 . . . . . . 4 . . . . Indirectly 2 | . . . . . . 1 . . . . . . 1 . . . . Trap Hack Attempts 7 | . . . . . 7 . . . . . . . . . . . . Triggered 1 | . . . . . 1 . . . . . . . . . . . . Disarmed 5 | . . . . . 1 . . . . . . . 4 . . . . Reprogrammed . | . . . . . . . . . . . . . . . . . . Reused 2 | . . . . . . . . . . . . . . 2 . . . Traps Extracted . | . . . . . . . . . . . . . . . . . . Installed 2 | . . . . . . . . . . . . . . 2 . . . Triggered 18 | . . . . . . . . . . . . . 1 4 . 13 . Most Traps Carried 1 | . . . . . . . . . . . . . . 1 . . . Machines | -11 -10 -10 -10 -9 -8 -7 -7 -7 -7 -6 -6 -6 -5 -5 -5 -5 -4 ---------- Run | Jun Mat Min Exi Min Mat Fac Low Low Zio Pro Fac DSF Fac Upp Upp War Pro Machines Disabled 41 | . . 1 . 4 3 16 . . . . . . 16 . . . 1 Max in Single Turn 7 | . . 1 . 2 1 5 . . . . . . 7 . . . 1 Garrison Access 1 | . . . . . . . . . . . . . 1 . . . . Machines Repaired . | . . . . . . . . . . . . . . . . . . Machines Sabotaged . | . . . . . . . . . . . . . . . . . . Overloaded Fab Kills . | . . . . . . . . . . . . . . . . . . Hacking | -11 -10 -10 -10 -9 -8 -7 -7 -7 -7 -6 -6 -6 -5 -5 -5 -5 -4 --------- Run | Jun Mat Min Exi Min Mat Fac Low Low Zio Pro Fac DSF Fac Upp Upp War Pro Machines Accessed 56 | . 7 . 5 . 9 7 . 1 . . 2 . 19 . . 6 . Terminals 29 | . 6 . . . 8 2 . . . . 1 . 12 . . . . Fabricators 6 | . . . . . . 2 . . . . . . 4 . . . . Repair Stations 6 | . 1 . . . 1 2 . . . . 1 . 1 . . . . Recycling Units . | . . . . . . . . . . . . . . . . . . Scanalyzers 2 | . . . . . . 1 . . . . . . 1 . . . . Garrison Access 1 | . . . . . . . . . . . . . 1 . . . . Total Hacks 223 | . 24 . 50 . 27 22 . 1 . . 6 . 77 . . 16 . Successful 147 | . 13 . 50 . 9 8 . 1 . . 3 . 47 . . 16 . Failed 75 | . 10 . . . 18 14 . . . . 3 . 30 . . . . Catastrophic 17 | . 1 . . . 5 2 . . . . . . 9 . . . . Database Lockouts 1 | . 1 . . . . . . . . . . . . . . . . Manual 57 | . 4 . 1 . 18 1 . . . . . . 33 . . . . Terminals 101 | . 22 . . . 25 7 . . . . 1 . 46 . . . . Fabricators 16 | . . . . . . 3 . . . . . . 13 . . . . Repair Stations 21 | . 2 . . . 2 8 . . . . 5 . 4 . . . . Recycling Units . | . . . . . . . . . . . . . . . . . . Scanalyzers 17 | . . . . . . 4 . . . . . . 13 . . . . Garrison Access 1 | . . . . . . . . . . . . . 1 . . . . Terminal Hacks 109 | . 11 . 50 . 9 2 . 1 . . 1 . 19 . . 16 . Record 66 | . 2 . 49 . . . . . . . . . . . . 15 . Part Schematic 3 | . . . . . . 2 . . . . . . 1 . . . . Robot Schematic 2 | . . . . . . . . . . . . . 2 . . . . Robot Analysis 10 | . 2 . . . 6 . . . . . . . 2 . . . . Prototype ID Bank 6 | . 1 . . . 3 . . . . . . . 2 . . . . Open Door 2 | . . . . . . . . 1 . . . . . . . 1 . Open DSF 2 | . . . . . . . . . . . 1 . 1 . . . . Branch Access Points 2 | . 1 . . . . . . . . . . . 1 . . . . Machine Index 1 | . . . . . . . . . . . . . 1 . . . . Terminal Index 1 | . . . . . . . . . . . . . 1 . . . . Unreport Threat 3 | . . . . . . . . . . . . . 3 . . . . Locate Traps 1 | . 1 . . . . . . . . . . . . . . . . Disarm Traps 1 | . . . . . . . . . . . . . 1 . . . . Investigation Status 1 | . 1 . . . . . . . . . . . . . . . . Recall Investigation 3 | . 1 . . . . . . . . . . . 2 . . . . Recall Extermination 1 | . . . . . . . . . . . . . 1 . . . . Recall Reinforcements 1 | . . . . . . . . . . . . . 1 . . . . Zone Layout 2 | . 2 . . . . . . . . . . . . . . . . EX-Prototype ID Bank 1 | . . . 1 . . . . . . . . . . . . . . Fabricator Hacks 12 | . . . . . . 1 . . . . . . 11 . . . . Network Status 1 | . . . . . . 1 . . . . . . . . . . . Load Schematic 6 | . . . . . . . . . . . . . 6 . . . . Build 5 | . . . . . . . . . . . . . 5 . . . . Repair Station Hacks 11 | . 2 . . . . 3 . . . . 2 . 4 . . . . Scan Component 5 | . . . . . . 2 . . . . 1 . 2 . . . . Repair 4 | . . . . . . 1 . . . . 1 . 2 . . . . Refit 2 | . 2 . . . . . . . . . . . . . . . . Recycling Unit Hacks . | . . . . . . . . . . . . . . . . . . Scanalyzer 14 | . . . . . . 2 . . . . . . 12 . . . . Insert Component 5 | . . . . . . 1 . . . . . . 4 . . . . Analyze 9 | . . . . . . 1 . . . . . . 8 . . . . Garrison Access Hacks 1 | . . . . . . . . . . . . . 1 . . . . Seal Access 1 | . . . . . . . . . . . . . 1 . . . . Unauthorized Hacks . | . . . . . . . . . . . . . . . . . . Terminals . | . . . . . . . . . . . . . . . . . . Fabricators . | . . . . . . . . . . . . . . . . . . Repair Stations . | . . . . . . . . . . . . . . . . . . Recycling Units . | . . . . . . . . . . . . . . . . . . Scanalyzers . | . . . . . . . . . . . . . . . . . . Garrison Access . | . . . . . . . . . . . . . . . . . . Data Cores Recovered 4 | . . . . . 1 2 . . . . . . 1 . . . . Used 1 | . . . . . 1 . . . . . . . . . . . . Hacking Detections 35 | . 6 . . . 9 6 . . . . 1 . 13 . . . . Full Trace Events 7 | . 1 . . . 1 2 . . . . . . 3 . . . . Feedback Events 1 | . . . . . . 1 . . . . . . . . . . . Corruption 1 | . . . . . . 1 . . . . . . . . . . . Feedback Blocked . | . . . . . . . . . . . . . . . . . . Robot Schematics Acquired 6 | . . . . . . . . . 4 . . . 2 . . . . Robots Built 7 | . . . . . . . . . . . . . 7 . . . . Authchips 2 | . . . . . . . . . . . . . 2 . . . . Time 352 | . . . . . . . . . . . . . 352 . . . . Total Robot Build Rating 30 | . . . . . . . . . . . . . 30 . . . . Part Schematics Acquired 23 | . . . . . . 3 . . 15 . . . 5 . . . . Parts Built . | . . . . . . . . . . . . . . . . . . Authchips . | . . . . . . . . . . . . . . . . . . Time . | . . . . . . . . . . . . . . . . . . Total Part Build Rating . | . . . . . . . . . . . . . . . . . . Parts Repaired 4 | . . . . . . 1 . . . . 1 . 2 . . . . Time 198 | . . . . . . 32 . . . . 70 . 96 . . . . Parts Recycled . | . . . . . . . . . . . . . . . . . . Recycled Matter . | . . . . . . . . . . . . . . . . . . Retrieved Matter . | . . . . . . . . . . . . . . . . . . Retrieved Components . | . . . . . . . . . . . . . . . . . . Parts Scanalyzed 5 | . . . . . . 1 . . . . . . 4 . . . . Part Schematics Acquired 5 | . . . . . . 1 . . . . . . 4 . . . . Parts Damaged 1 | . . . . . . . . . . . . . 1 . . . . Bothacking | -11 -10 -10 -10 -9 -8 -7 -7 -7 -7 -6 -6 -6 -5 -5 -5 -5 -4 ------------ Run | Jun Mat Min Exi Min Mat Fac Low Low Zio Pro Fac DSF Fac Upp Upp War Pro Used RIF Installer . | . . . . . . . . . . . . . . . . . . Robots Hacked . | . . . . . . . . . . . . . . . . . . Non-combat . | . . . . . . . . . . . . . . . . . . Combat . | . . . . . . . . . . . . . . . . . . Robot Hacks Applied . | . . . . . . . . . . . . . . . . . . Relay Couplers Released . | . . . . . . . . . . . . . . . . . . Fabnet Peak Effective % . | . . . . . . . . . . . . . . . . . . Robots Rewired 5 | . . . . . . . . . . . . . . . . 5 . Allies Hacked 1 | . . . . . . . . . . . . . 1 . . . . Hacks Repelled 1 | . . . . . . . . . . . . . 1 . . . . Allies | -11 -10 -10 -10 -9 -8 -7 -7 -7 -7 -6 -6 -6 -5 -5 -5 -5 -4 -------- Run | Jun Mat Min Exi Min Mat Fac Low Low Zio Pro Fac DSF Fac Upp Upp War Pro Total Allies 13 | . . . . . . . . . . . . . 7 . 1 5 . Largest Group 5 | . . . . . . . . . . . . . 3 1 1 5 4 Highest-Rated Group 274 | . . . . . . . . . . . . . 139 65 106 274 225 Highest-Rated Ally 106 | . . . . . . . . . . . . . 65 65 106 65 65 Total Orders 8 | . . . . . . . . . . . . . 6 2 . . . STAY 3 | . . . . . . . . . . . . . 2 1 . . . FOLLOW 2 | . . . . . . . . . . . . . 1 1 . . . RETURN 3 | . . . . . . . . . . . . . 3 . . . . Ally Attacks 166 | . . . . . 46 . . . . . . 18 51 . 5 33 13 Total Damage 5847 | . . . . . 2350 . . . . . . 922 1075 . 179 1029 292 Kills 40 | . . . . . 15 . . . . . . 6 11 . 1 6 1 Allies Corrupted 1 | . . . . . . . . . . . . . . 1 . . . Allies Melted 1 | . . . . . 1 . . . . . . . . . . . . Turrets Deployed 3 | . . . . . 2 . . . . . . 1 . . . . . Intel | -11 -10 -10 -10 -9 -8 -7 -7 -7 -7 -6 -6 -6 -5 -5 -5 -5 -4 ------- Run | Jun Mat Min Exi Min Mat Fac Low Low Zio Pro Fac DSF Fac Upp Upp War Pro Robot Analysis Total 10 | . 2 . . . 6 . . . . . . . 2 . . . . Derelict Logs Recovered 7 | . . 1 . 1 . . 2 . 1 1 . . . 1 . . . Drone Launches 3 | . . . . . . . . . . . . . 3 . . . . Drone Recoveries 3 | . . . . . . . . . . . . . 3 . . . . Exploration | -11 -10 -10 -10 -9 -8 -7 -7 -7 -7 -6 -6 -6 -5 -5 -5 -5 -4 ------------- Run | Jun Mat Min Exi Min Mat Fac Low Low Zio Pro Fac DSF Fac Upp Upp War Pro Turns Passed 9476 | 84 732 419 280 535 1381 833 348 238 347 249 289 202 1888 554 253 576 268 Spaces Moved 12302 | 50 591 649 416 587 1292 1235 525 489 871 380 338 254 2480 571 433 737 404 Core 813 | 12 1 . . . 6 . . . . . . . . 125 433 236 . Treads . | . . . . . . . . . . . . . . . . . . Legs 171 | . . . . . 171 . . . . . . . . . . . . Wheels 76 | 38 38 . . . . . . . . . . . . . . . . Hover 10733 | . 552 649 416 587 1115 1235 525 489 871 380 338 254 2480 446 . 396 . Flight 509 | . . . . . . . . . . . . . . . . 105 404 Fastest Speed 26 | 50 56 56 66 66 58 38 38 38 38 38 38 45 43 50 50 26 26 Average Speed 54 | 103 85 60 66 66 75 47 38 38 38 38 43 45 48 66 50 58 30 Slowest Speed 275 | 200 250 66 66 66 200 126 38 42 38 38 45 51 105 150 50 275 112 Overloaded Moves . | . . . . . . . . . . . . . . . . . . Propulsion Burnouts . | . . . . . . . . . . . . . . . . . . Robots Hopped 3 | . . . . . . . . . . . . . . . . . 3 Cave-ins Triggered . | . . . . . . . . . . . . . . . . . . Exploration Rate (%) 63 | 3 80 94 90 95 59 31 64 55 84 56 8 93 43 73 72 91 55 Regions Visited 17 Branch Regions 11 Pre-discovered Areas 5 | . . 1 1 1 . . . . 1 . . . . 1 . . . Known Exits Taken 7 | . 1 . . 1 . . 1 . . . 1 . 1 1 1 . . Unknown Exits Taken 9 | 1 . 1 1 . 1 1 . 1 1 1 . . . . . 1 . Scrap Searched 20 | . . 1 . 2 . . 2 2 5 1 . . . 3 3 . 1 Spaces Dug 94 | . . 12 . . 3 . . . . . . . 19 . . . 60 Terrain Destroyed 1292 | . . 29 . 180 95 170 119 103 . 70 . 15 103 11 . 160 237 Melee . | . . . . . . . . . . . . . . . . . . Projectile 115 | . . . . 1 7 . . 1 . 1 . . 59 11 . . 35 AOE 1177 | . . 29 . 179 88 170 119 102 . 69 . 15 44 . . 160 202 Terrain Rammed . | . . . . . . . . . . . . . . . . . . Walls Destroyed . | . . . . . . . . . . . . . . . . . . Machines Disabled . | . . . . . . . . . . . . . . . . . . Actions | -11 -10 -10 -10 -9 -8 -7 -7 -7 -7 -6 -6 -6 -5 -5 -5 -5 -4 --------- Run | Jun Mat Min Exi Min Mat Fac Low Low Zio Pro Fac DSF Fac Upp Upp War Pro Total 14467 | 65 763 672 422 680 1530 1412 657 515 886 461 478 324 3058 690 467 878 509 Wait 1113 | . 59 . . 42 47 78 112 1 3 66 128 36 378 44 31 39 49 Move 12280 | 49 590 648 415 586 1291 1234 524 488 870 379 337 253 2480 570 432 736 398 Hop 3 | . . . . . . . . . . . . . . . . . 3 Pick Up 94 | 3 11 7 3 4 13 7 3 4 3 1 1 6 20 4 1 3 . Fast Attach 110 | 6 12 1 . 1 17 8 . . 3 1 3 4 14 7 3 22 8 Attach 57 | . 5 . . . 9 6 4 1 . . 1 1 11 6 . 4 9 Detach 37 | . 4 . . . 4 4 . . 1 . 1 . 5 3 . 7 8 Swap 68 | . 7 4 1 1 11 9 2 . . 1 3 3 19 3 . 3 1 Drop 156 | . 22 8 3 6 22 13 . 2 5 2 4 8 25 9 . 22 5 Fire 483 | 7 53 4 . 40 109 49 12 17 1 11 . 13 91 42 . 6 28 Melee . | . . . . . . . . . . . . . . . . . . Ram . | . . . . . . . . . . . . . . . . . . Kick . | . . . . . . . . . . . . . . . . . . Crush . | . . . . . . . . . . . . . . . . . . Escape Stasis 15 | . . . . . . . . . . . . . 15 . . . . Rewire 42 | . . . . . . 4 . 2 . . . . . . . 36 . Trap 9 | . . . . . 7 . . . . . . . . 2 . . . Miscellaneous . | . . . . . . . . . . . . . . . . . . Route ------- -11/Junkyard -10/Materials (discovered 4 exits: [*Mat x2] / *Min x2) -10/Mines (discovered 3 exits: [*Mat x2] / *Exi) -10/Exiles -9/Mines (discovered 2 exits: *Mat x2) -8/Materials -7/Factory (discovered 2 exits: *Fac / [*Low]) -7/Lower Caves -7/Lower Caves (discovered 2 exits: *Fac / [*Zio]) -7/Zion (discovered 2 exits: Dee / [*Pro]) -6/Proximity Caves -6/Factory (discovered 2 exits: *Fac / DSF) -6/DSF -5/Factory (discovered 2 exits: *Upp x2) -5/Upper Caves -5/Upper Caves (discovered 3 exits: *Fac x2 / *War) -5/Warlord -4/Proximity Caves History --------- Turn | Location | Event 15 | -11/Junkyard | Discovered new exit (range 16) 85 | -11/Junkyard | Entered Materials 168 | -10/Materials | Discovered new exit (range 6) 282 | -10/Materials | Discovered new exit (range 15) 308 | -10/Materials | Build established: Mutant 475 | -10/Materials | Discovered new exit (range 15) 716 | -10/Materials | Discovered new exit (range 16) 788 | -10/Materials | Identified exit to Mines 788 | -10/Materials | Central database locked down 817 | -10/Materials | Entered Mines 842 | -10/Mines | Discovered new exit (range 13) 884 | -10/Mines | Assembled infested the area 908 | -10/Mines | Received a Rocket Launcher from a helpful Derelict 989 | -10/Mines | Met 8R-AWN 998 | -10/Mines | Discovered new exit (range 5) 1074 | -10/Mines | Discovered new exit (range 10) 1161 | -10/Mines | Learned location of Zion (-7) 1236 | -10/Mines | Entered Exiles 1253 | -10/Exiles | Welcomed by 8R-AWN 1263 | -10/Exiles | Met EX-HEX 1282 | -10/Exiles | Met EX-BIN 1293 | -10/Exiles | Aligned with FarCom system 1293 | -10/Exiles | Given EX-Vault access code 1320 | -10/Exiles | Opened EX-Vault 1327 | -10/Exiles | Found Deploy-a-Sentry 1329 | -10/Exiles | Found Deploy-a-Sentry 1331 | -10/Exiles | Found Deploy-a-Sentry 1345 | -10/Exiles | Warned to stay clear of 0b10 Research branches 1365 | -10/Exiles | Met EX-DEC 1395 | -10/Exiles | Visited The Gauntlet 1428 | -10/Exiles | Build established: Scavenger-Mutant 1511 | -10/Exiles | Discovered new exit (range 10) 1516 | -10/Exiles | Left Exiles lab with Deploy-a-Sentry 1516 | -10/Exiles | Entered Mines 1517 | -9/Mines | Learned location of Storage (-9) 1555 | -9/Mines | Found a damaged Exp. Sensor Array with a note attached 1557 | -9/Mines | Found Prototype Device 1579 | -9/Mines | Met a Derelict bent on vengeance 1632 | -9/Mines | Discovered new exit (range 4) 1702 | -9/Mines | Identified exit to Materials 1765 | -9/Mines | Core integrity fell below 50% 1880 | -9/Mines | Joined a pair of Derelicts in attacking an 0b10 outpost 2007 | -9/Mines | A weapon hastily lodged in a ceiling crevice suddenly fell to the ground 2051 | -9/Mines | Entered Materials 2051 | -8/Materials | Evolved 4 slots: Propulsion x1, Utility x3 2314 | -8/Materials | Lost 4 parts (1p1n2w) 2364 | -8/Materials | Lost 3 parts (1p1n1w) 2610 | -8/Materials | DAS Turret deployed 2834 | -8/Materials | DAS Turret deployed 2851 | -8/Materials | First assault squad dispatched 3009 | -8/Materials | Discovered new exit (range 12) 3108 | -8/Materials | Identified Exp. Sensor Array 3432 | -8/Materials | Entered Factory 3432 | -7/Factory | Evolved 2 slots: Propulsion x1, Utility x1 3611 | -7/Factory | Discovered new exit (range 16) 3727 | -7/Factory | Discovered new exit (range 4) 3836 | -7/Factory | Garrison activated, responded to threat 4104 | -7/Factory | Repaired Mni. Grenade Launcher 4232 | -7/Factory | First assault squad dispatched 4258 | -7/Factory | P-60 Hacker assimilated allied 7Z-8GA(h) 4262 | -7/Factory | Build established: Mutant 4265 | -7/Factory | Entered Lower Caves 4274 | -7/Lower Caves | Learned Factory terminal intel 4285 | -7/Lower Caves | Identified exit to Lower Caves 4293 | -7/Lower Caves | Lost 3 parts (1p2u) 4613 | -7/Lower Caves | Entered another Lower Caves area 4613 | -7/Lower Caves | Discovered new exit (range 10) 4616 | -7/Lower Caves | Ambushed by wild Derelicts 4650 | -7/Lower Caves | Encountered a Warlord checkpoint 4736 | -7/Lower Caves | Discovered new exit (range 15) 4851 | -7/Lower Caves | Entered Zion 4882 | -7/Zion | Found GAL Module 4884 | -7/Zion | Discovered new exit (range 13) 4985 | -7/Zion | Learned location of Warlord (-5) 4998 | -7/Zion | Identified exit to Deep Caves 5043 | -7/Zion | Rebuked by Imprinter 5153 | -7/Zion | Given the Hacking Drone Bay 5153 | -7/Zion | Found Prototype Device 5153 | -7/Zion | Identified Hacking Drone Bay 5198 | -7/Zion | Entered Proximity Caves 5200 | -6/Proximity Caves | Attracted the attention of an 0b10 checkpoint 5395 | -6/Proximity Caves | Spotted B-75 Beast 5429 | -6/Proximity Caves | Learned Factory stockpile data 5442 | -6/Proximity Caves | Discovered new exit (range 14) 5447 | -6/Proximity Caves | Entered Factory 5447 | -6/Factory | Evolved 2 slots: Utility x2 5449 | -6/Factory | Loaded intel: 28 terminal locations 5467 | -6/Factory | Discovered new exit (range 15) 5504 | -6/Factory | Identified exit to DSF 5701 | -6/Factory | Repaired Imp. Airjet? 5736 | -6/Factory | Entered DSF 5755 | -6/DSF | DAS Turret deployed 5760 | -6/DSF | Additional patrols routed to DSF 5772 | -6/DSF | Discovered new exit (range 11) 5787 | -6/DSF | Build established: Derelict-Mutant 5932 | -6/DSF | Sterilization system engaged 5938 | -6/DSF | Entered Factory 5938 | -5/Factory | Evolved 2 slots: Power x1, Utility x1 5977 | -5/Factory | Identified exit to Upper Caves 6110 | -5/Factory | Build established: Hacker-Mutant 6278 | -5/Factory | Garrison activated, responded to threat 6429 | -5/Factory | Fabricated Y-54 Guardian? 6649 | -5/Factory | Build established: Wizard-Mutant 6662 | -5/Factory | Repaired Sml. Storage Unit 6763 | -5/Factory | Repaired Imp. Airjet? 6978 | -5/Factory | Fabricated P-60 Hacker? 7034 | -5/Factory | Fabricated I-47 Archangel? 7070 | -5/Factory | Cargo convoy interrupted 7425 | -5/Factory | Build established: Hacker-Mutant 7544 | -5/Factory | Fabricated P-60 Hacker? 7738 | -5/Factory | First assault squad dispatched 7826 | -5/Factory | Entered Upper Caves 7826 | -5/Upper Caves | Accompanied by 1 ally 7858 | -5/Upper Caves | Met a Warlord Commander 7867 | -5/Upper Caves | Found Encrypted Comm Array 7878 | -5/Upper Caves | Lost 5 parts (2p1n1u1w) 8101 | -5/Upper Caves | Lost 3 parts (2n1w) 8145 | -5/Upper Caves | Encountered a Warlord checkpoint 8168 | -5/Upper Caves | Identified exit to Upper Caves 8315 | -5/Upper Caves | Attracted the attention of an 0b10 outpost 8345 | -5/Upper Caves | Core integrity fell below 50% 8349 | -5/Upper Caves | Lost 3 parts (1n1u1w) 8380 | -5/Upper Caves | Entered another Upper Caves area 8430 | -5/Upper Caves | Discovered new exit (range 9) 8434 | -5/Upper Caves | Identified exit to Factory 8503 | -5/Upper Caves | 12-ASH showed up to help 8505 | -5/Upper Caves | 12-ASH revealed a hidden path 8509 | -5/Upper Caves | Attracted the attention of an 0b10 checkpoint 8517 | -5/Upper Caves | Core integrity fell below 20% 8594 | -5/Upper Caves | Discovered new exit (range 14) 8595 | -5/Upper Caves | Encountered a Warlord checkpoint 8600 | -5/Upper Caves | Identified exit to Warlord 8633 | -5/Upper Caves | Entered Warlord 8653 | -5/Warlord | System corruption cleaned by Quarantine Array 8729 | -5/Warlord | Met Warlord 8754 | -5/Warlord | Warlord's base attacked by MAIN.C 8865 | -5/Warlord | Found Prototype Energy Gun 8865 | -5/Warlord | Identified Vortex Rail 8869 | -5/Warlord | Found Prototype Launcher 8869 | -5/Warlord | Identified Vortex Catalyst Activator 8875 | -5/Warlord | Found Vortex Rail 9054 | -5/Warlord | Warlord forces counterattacked 9082 | -5/Warlord | Spotted Executioner 9082 | -5/Warlord | Spotted Executioner 9093 | -5/Warlord | Allies destroyed Executioner 9115 | -5/Warlord | Found Prototype Processor 9115 | -5/Warlord | Identified Exp. Core Analyzer 9118 | -5/Warlord | Found Prototype Processor 9118 | -5/Warlord | Identified Exp. Targeting Computer 9151 | -5/Warlord | Discovered new exit (range 14) 9157 | -5/Warlord | Spotted Executioner 9157 | -5/Warlord | Spotted Executioner 9160 | -5/Warlord | Spotted Striker 9161 | -5/Warlord | P-70 Sage assimilated allied Sentinel 6a 9161 | -5/Warlord | Destroyed Striker 9163 | -5/Warlord | Destroyed Executioner 9171 | -5/Warlord | Allies destroyed Executioner 9184 | -5/Warlord | Destroyed 13 combat bots 9209 | -5/Warlord | Entered Proximity Caves 9209 | -4/Proximity Caves | Accompanied by 4 allies 9209 | -4/Proximity Caves | Spotted B-86 Titan 9245 | -4/Proximity Caves | Destroyed B-86 Titan 9271 | -4/Proximity Caves | Lost 4 parts (1p2n1u) 9344 | -4/Proximity Caves | Attracted the attention of an 0b10 checkpoint 9347 | -4/Proximity Caves | Spotter reported a threat 9401 | -4/Proximity Caves | Destroyed 7 combat bots 9422 | -4/Proximity Caves | Spotter reported a threat 9444 | -4/Proximity Caves | Attracted the attention of an 0b10 outpost 9477 | -4/Proximity Caves | Destroyed by S-27 Virus with Autogun Last Messages --------------- 09447_ S-27 Virus destroyed. 09447_ Machine disabled. 09447_ S-27 Virus destroyed. 09449_ Vortex Catalyst Activator implodes. 09453_ Med. Treads fries itself beyond repair. 09453_ Flexi-carbon Leg fries itself beyond repair. 09454_ Vortex penetrates G-67 Veteran. 09454_ Entropic reaction triggered in Lgt. Antimatter Reactor. 09454_ Destroyed Flexi-carbon Leg. 09456_ Vortex penetrates L-61 Swordsman. 09456_ L-61 Swordsman destroyed. 09456_ Cesium-ion Thruster destroyed. 09458_ Vortex penetrates G-67 Veteran. 09458_ G-67 Veteran destroyed. 09460_ Vortex penetrates S-27 Virus. 09460_ Destroyed VTOL Module. 09461_ Field Laser fries itself beyond repair. 09462_ Vortex penetrates S-27 Virus. 09462_ Cesium-ion Thruster destroyed. [Achievement: I Think I Know What's Going On] Map ----- +----------------------------------------------------+ | ########???## " "" ##?????????????????? | | ##??# " "" #?????????????????? | | #??# " "" ##?????????????????? | | ### ##?# # "" "##??????????????????? | | ####?# ### # " "#???????????????????? | | #???## ### " ##???????????????????? | | #?## #?#### ##????????????????????? | | ## #######????# #?????????????????????? | | ##### #??????????# ##?????????????????????? | | ### ##???# #????#########??????????????????????? | | #??######## ###??# ## #????????????????????????? | | ?????## #??# ####??####???????????????? | | ????## ##### # #### ##??????????????? | | ?#### ### # # # #??????????????? | | ## # # # #??????????????? | | # # #??????????????? | | ### # #####??????????????? | | ## ##### ###??????????????????? | | #?####??## # # ###????????????????????? | | ???????## ##????###???????????????? | | ???????## ### ## # #??#### #???????????????? | | ?????#### #?#### #??# #???????????????? | | ?###"" #????## ##?## #???????????????? | | #""" "###???###?## ##??????????????? | | ;; ;;# ######### ##?????????????? | | ; ;; s@ #?????????????? | | ;; ;; s s #?????????????? | | ######;;;; ;;; ### ####### ###"" """"#???? | | ?????# ; #?# #?????## ;; % " "#? | | ?????# ;; ### ###????# % " " | | ?????## "" "" ##???# % " | | ??????#"" """ #### ##??# % " | | ??????## " # # #### ##?## % " | | ??????# ###### #??####" " " | | ??????# # ?????# ### #??????#""" " " | | ??????# ?????# #?## #???????#"" | | ??????# #????? ??# ## #????????""" | | ?????# #?????? ??# #?##????????? "" | | ???? ??????? ??## ##???????????? """ | | ??? ### ??????? ??## #????????????? """ | | ?? # ?? ??????# ???## #????????????? ## | | ? ? ??? ???????# #### ##????????????? ### #? | | ? ??? #???????# #??????????????#???##? | | ?#???? ????????## ### #???????????????????? | | ?????##?????????####???#######???????????????????? | | ?????????????????????????????????????????????????? | | ?????????????????????????????????????????????????? | | ?????????????????????????????????????????????????? | | ?????????????????????????????????????????????????? | | ?????????????????????????????????????????????????? | +----------------------------------------------------+ Best States ------------- Heat Dissipation 48 Energy Generation 28 Energy Capacity 410 Matter Stores 450 Matter Capacity 450 Sight Range 23 Robot Scan Range 20 Terrain Scan Range 14 Terrain Scan Density 10 Jamming Range 14 Power Amplification 20 Armor Coverage 80 Core Shielding 20 Utility Shielding 66 Evasion (%) 66 Targeting Accuracy 20 Launcher Accuracy 20 Target Analysis 6 Matter Filtering 30 Energy Filtering 30 Offensive Hacking 35 Defensive Hacking 41 Authchip Count 3 Item Schematics ----------------- Cld. Airjet | -7/Factory | Scanalyzed Imp. Core Shielding | -7/Factory | Hacked Core Analyzer | -7/Factory | Hacked Plasma Rifle | -7/Zion | Archive Mak. Terrain Scan Processor | -7/Zion | Archive Enh. Gauss Cannon | -7/Zion | Archive Hvy. Phase Cannon | -7/Zion | Archive Mak. Spear | -7/Zion | Archive Hpw. Shock Rifle | -7/Zion | Archive Greatsword | -7/Zion | Archive Hvy. Flak Cannon | -7/Zion | Archive Imp. Carbon-fiber Leg | -7/Zion | Archive Force Field | -7/Zion | Archive Launcher Guidance Computer | -7/Zion | Archive Fusion Compressor | -7/Zion | Archive Flak Gun | -7/Zion | Archive Hvy. Battle Rifle | -7/Zion | Archive Mak. Transmission Jammer | -7/Zion | Archive System Shield | -5/Factory | Scanalyzed Imp. Remote Datajack | -5/Factory | Scanalyzed Mni. Grenade Launcher | -5/Factory | Scanalyzed Exp. Sensor Array | -5/Factory | Scanalyzed Adv. Hacking Suite | -5/Factory | Hacked Robot Schematics ------------------ H-88 Terminator | -7/Zion | Archive S-27 Virus | -7/Zion | Archive P-60 Hacker | -7/Zion | Archive R-06 Scavenger | -7/Zion | Archive Y-54 Guardian | -5/Factory | Hacked I-47 Archangel | -5/Factory | Hacked Fabricated ------------ Y-54 Guardian | x2 | -5/Factory | Authchip P-60 Hacker | x2 | -5/Factory I-47 Archangel | x1 | -5/Factory P-60 Hacker | x2 | -5/Factory Alien Tech Used ----------------- None Achievements -------------- Collateral Damage I Think I Know What's Going On Challenges ------------ None Game ------ Seed SingularityResetBrace Manual? 0 Play Time 03:22:56 Cumulative 61.9 hours Start 2024.01.12 @ 23:39:58 End 2024.01.13 @ 03:06:42 Sessions 1 Manual Loads 0 Difficulty Rogue Special Mode None Game No. 35 Rogue 35 Adventurer 0 Explorer 0 Win Type - Total 0 Types 0/0/0/0/0/0/0/0/0 Lore% 51 Gallery% 48 Achievement% 39 Wizard Run 0 Options --------- ASCII 0 Keyboard 1 Movement Arrows Keybinds 0 Fullscreen 1 Font 12/Proggy Map View 83x54 Tactical HUD 1 Map Filters NONE Filters NONE Steam 0 RUN: 0e6f5381-c1fd-41c7-a220-6a9c1c45c251